Cogmind - Beta 15 @@@ ROGUE MODE // 2025.06.05 @ 15:56:43 Player: Candle Result: Destroyed by D-53 Grenadier with Mini Grenade Launcher Performance ------------- Evolutions (0) 0 Regions Visited (2) 400 Robots Destroyed (22) 110 Value Destroyed (356) 356 Prototype IDs (4) 80 Alien Tech Used (0) 0 Bonus (0) 0 TOTAL SCORE: 946 Bonus ------- None Cogmind --------- Core Integrity 0/250 Matter 286/300 Energy 78/100 System Corruption 0% Temperature Cool (0) Movement Core (700) Ox13 Location -10/Mines Parts ------- > --- POWER (1) -------- (None) > --- PROPULSION (2) --- (None) > --- UTILITY (2) ------ High-capacity Storage Unit Visual Processing Unit > --- WEAPON (2) ------- Light Assault Rifle > --- INVENTORY (20) --- Light Nuclear Core Light Nuclear Core Light Treads Light Treads Compact Wheel Hover Unit Hover Unit Hover Unit Hover Unit Medium Storage Unit Weight Redist. System Core Shielding Core Shielding Hacking Suite Particle Gun Hammer Peak State ------------ > --- POWER ------------ Improved Ion Engine > --- PROPULSION ------- Light Treads Light Treads > --- UTILITY ---------- Small Storage Unit Improved Terrain Scanner > --- WEAPON ----------- Light Assault Rifle Light Assault Rifle > --- INVENTORY -------- Ion Engine Light Treads Light Treads Compact Wheel Large Battery Hacking Suite Light Assault Rifle Hammer [Rating: 11] Favorites ----------- Power Improved Ion Engine Engine Improved Ion Engine Propulsion Light Treads Treads Light Treads Utility Small Storage Unit Device Structural Scanner Storage Small Storage Unit Processor Visual Processing Unit Weapon Light Assault Rifle Ballistic Gun Light Assault Rifle Impact Weapon Hammer Build | -11 -10 -10 ------- Run | Yrd Mat Min Slots Evolved . | . . . Power . | . . . Propulsion . | . . . Utility . | . . . Weapon . | . . . Parts Attached 20 | 7 12 1 Power 3 | 1 2 . Engine 3 | 1 2 . Core . | . . . Reactor . | . . . Propulsion 4 | 2 2 . Treads 4 | 2 2 . Leg . | . . . Wheel . | . . . Hover . | . . . Flight . | . . . Utility 6 | 2 4 . Device 2 | 1 1 . Storage 3 | 1 2 . Processor 1 | . 1 . Hackware . | . . . Protection . | . . . Artifact . | . . . Weapon 7 | 2 4 1 Energy Gun . | . . . Energy Cannon . | . . . Ballistic Gun 6 | 2 3 1 Ballistic Cannon . | . . . Launcher . | . . . Special Weapon . | . . . Impact Weapon 1 | . 1 . Slashing Weapon . | . . . Piercing Weapon . | . . . Special Melee Weapon . | . . . Unidentified Prototypes . | . . . Parts Lost 8 | . 2 6 Power 2 | . 1 1 Propulsion 2 | . . 2 Utility 1 | . 1 . Weapon 3 | . . 3 Highest Loss Streak 6 | . 2 6 To Critical Strikes . | . . . Average Backups 10 | 1 10 18 Power 1 | . 1 2 Propulsion 4 | . 4 7 Utility 2 | . 2 5 Weapon 2 | . 1 4 Tool/Special . | . . . Unused Backups 17 | . 4 13 Power 3 | . 1 2 Propulsion 7 | . 1 6 Utility 5 | . 1 4 Weapon 2 | . 1 1 Tool/Special . | . . . Average Slot Usage (%) 99 | . 99 98 Engine 13 | . 14 13 Treads 27 | . 27 26 Device 10 | . 12 . Storage 14 | . 14 14 Processor 3 | . 1 14 Ballistic Gun 26 | . 26 28 Impact Weapon 1 | . 1 . Peak Build Rating 11 | 9 11 11 Average Rating 9 | 6 9 10 On Entrance 6 | . 9 11 Naked Turns . | . . . Heaviest Build 50 | 14 50 49 Greatest Support 40 | 40 40 40 Greatest Overweight (x) 4 | 4 1 2 Average Overweight (x) . | . . 1 Largest Inventory Capacity 20 | 8 20 20 Average Capacity 13 | 7 12 20 Most Carried 19 | 2 19 18 Average Carried 10 | 1 10 17 Final Capacity 20 | 8 20 20 Final Carried 18 | 2 18 16 Class Distribution -------------------- 83% | Mutant 16% | Scavenger-Mutant Dominant Class ---------------- Mutant | -10/Materials Scavenger-Mutant | -10/Mines Resources | -11 -10 -10 ----------- Run | Yrd Mat Min Matter Collected 622 | 302 270 50 Remotely . | . . . Salvage Created 645 | 90 478 77 Parts 49 | 7 38 4 Haulers Intercepted 2 | . 2 . Recyclers Shooed . | . . . Parts Field Recycled . | . . . Retrieved Matter . | . . . Parts Self-Destructed . | . . . Prevented . | . . . Kills | -11 -10 -10 ------- Run | Yrd Mat Min Combat Hostiles Destroyed 16 | . 11 5 Guns 16 | . 11 5 Classes Destroyed 9 | 2 6 1 Builder 1 | . 1 . Tunneler 1 | 1 . . Hauler 2 | . 2 . Recycler 1 | 1 . . Operator 1 | . 1 . Watcher 2 | . 2 . Swarmer 9 | . 6 3 Grunt 5 | . 5 . Assembled 2 | . . 2 Best Kill Streak 3 | 2 3 3 Combat Bots Only 3 | . 3 3 Max Kills in Single Turn 2 | 1 2 1 Gunslinging 1 | . 1 . Exploded . | . . . Melee . | . . . Uniques/NPCs Destroyed . | . . . Combat | -11 -10 -10 -------- Run | Yrd Mat Min Hostile Shots Fired 121 | . 83 38 Missed 22 | . 16 6 Hits 99 | . 67 32 Melee 3 | . . 3 Projectile 96 | . 67 29 AOE 10 | . . 10 Critical Strikes 1 | . 1 . Part Disruptions 1 | . . 1 Damage Taken 1433 | . 728 705 Core 280 | . 98 182 Absorbed by Shields . | . . . Regen/Repaired (Parts) 111 | . 111 . Core Remaining (%) 100 | 100 . . Volleys Fired 103 | 8 78 17 Largest 2 | 2 2 2 Hottest 40 | 40 40 40 Shots Fired 206 | 16 156 34 Gun 206 | 16 156 34 Cannon . | . . . Launcher . | . . . Special . | . . . Kinetic 206 | 16 156 34 Thermal . | . . . Explosive . | . . . Electromagnetic . | . . . Robot Hit Streak 12 | 4 12 10 Robot Miss Streak 4 | 2 4 3 Penetration Max . | . . . Secondary Targets 4 | . 3 1 Max Gunslinging Chain 1 | . 1 1 Shots Hit Robots 123 | 10 91 22 Core Hits 57 | 5 40 12 Critical Kills . | . . . Critical Parts Destroyed 1 | . 1 . Critical Strikes 1 | . 1 . Destroy 1 | . 1 . Melee Attacks 5 | . 5 . Impact 5 | . 5 . Slashing . | . . . Piercing . | . . . Sneak Attacks . | . . . Combat Hostiles . | . . . Follow-up Attacks . | . . . Damage Inflicted 1078 | 103 771 204 Guns 1078 | 103 771 204 Cannons . | . . . Explosions . | . . . Melee . | . . . Ramming . | . . . Kinetic 1078 | 103 771 204 Thermal . | . . . Explosive . | . . . Electromagnetic . | . . . Impact . | . . . Slashing . | . . . Piercing . | . . . Highest Corruption . | . . . Average Corruption . | . . . Corruption Purged . | . . . Corruption Blocked . | . . . Overload Shots . | . . . Overflow Damage . | . . . Projectiles . | . . . Explosions . | . . . Melee . | . . . Knockbacks . | . . . Impact . | . . . Kinetic . | . . . Secondary . | . . . Self-Inflicted Damage . | . . . Shots . | . . . Rammed . | . . . Targets Rammed . | . . . Kicked . | . . . Crushed . | . . . Highest Temperature 32 | . 23 32 Average Temperature 6 | . 6 6 Received Heat Transfer 352 | . 252 100 Siege Activations . | . . . Martial Activations . | . . . Shielding Activations . | . . . Robots Disrupted . | . . . Combat Hostiles . | . . . Robots Corrupted . | . . . Combat Hostiles . | . . . Parts Fried . | . . . Impact Corruptions . | . . . Robots Melted . | . . . Combat Hostiles . | . . . Parts Melted . | . . . Heat Transferred . | . . . Parts Sabotaged . | . . . Parts Stolen . | . . . Parts Stripped . | . . . Power Chain Reactions . | . . . Alert | -11 -10 -10 ------- Run | Yrd Mat Min Maximum Alert Level . | . . . Low Security (%) 100 | 100 100 100 Level 1 . | . . . Level 2 . | . . . Level 3 . | . . . Level 4 . | . . . Level 5 . | . . . High Security . | . . . Max Security . | . . . Peak Influence 97 | 5 97 60 Initial 25 | . . 25 Average 19 | . 21 15 Influence Increases 473 | 10 393 70 Destroy 0b10 Robot/C 280 | . 220 60 Destroy 0b10 Robot/NC 40 | 10 30 . Destroy Leader 58 | . 48 10 Successful Hack 31 | . 31 . Destroy Structure 4 | . 4 . Lose Combat Pursuer 60 | . 60 . Influence Decreases 473 | 10 328 135 Entered New Map 40 | . . 40 Time Decay 373 | 10 308 55 Lost Part 50 | . 20 30 Lost Ally 10 | . . 10 Squads Dispatched 1 | . 1 . Investigation 1 | . 1 . Extermination . | . . . Reinforcement . | . . . Assault . | . . . Garrison . | . . . Intercept . | . . . Searches Triggered . | . . . Construction Impeded . | . . . Haulers Reinforced . | . . . Active Scanning Responses . | . . . Cargo Convoy Interrupts . | . . . Stealth | -11 -10 -10 --------- Run | Yrd Mat Min Distress Signals . | . . . Communications Jammed . | . . . Distress Signals . | . . . Times Spotted 32 | . 25 7 Peak Tracking Total 4 | . 4 3 Tactical Retreats 4 | . 4 . Traps | -11 -10 -10 ------- Run | Yrd Mat Min Traps Triggered 1 | . 1 . Indirectly . | . . . Trap Hack Attempts . | . . . Triggered . | . . . Disarmed . | . . . Reprogrammed . | . . . Reused . | . . . Traps Extracted . | . . . Installed . | . . . Triggered . | . . . Machines | -11 -10 -10 ---------- Run | Yrd Mat Min Machines Disabled . | . . . Max in Single Turn . | . . . Machines Repaired . | . . . Machines Dismantled . | . . . Machines Sabotaged . | . . . Overloaded Fab Kills . | . . . Hacking | -11 -10 -10 --------- Run | Yrd Mat Min Machines Accessed 10 | . 10 . Terminals 8 | . 8 . Fabricators . | . . . Repair Stations 1 | . 1 . Recycling Units 1 | . 1 . Scanalyzers . | . . . Garrison Access . | . . . Total Hacks 36 | . 36 . Successful 23 | . 23 . Failed 13 | . 13 . Catastrophic . | . . . Database Lockouts . | . . . Manual 22 | . 22 . Terminals 31 | . 31 . Fabricators . | . . . Repair Stations 2 | . 2 . Recycling Units 3 | . 3 . Scanalyzers . | . . . Garrison Access . | . . . Terminal Hacks 14 | . 14 . Robot Analysis 3 | . 3 . Prototype ID Bank 2 | . 2 . Branch Access Points 1 | . 1 . Emergency Access Points 1 | . 1 . Locate Traps 1 | . 1 . Transport Status 1 | . 1 . Recall Investigation 1 | . 1 . Hauler Manifests 1 | . 1 . Registered Components 1 | . 1 . Zone Layout 2 | . 2 . Fabricator Hacks . | . . . Repair Station Hacks 2 | . 2 . Scan Component 1 | . 1 . Repair 1 | . 1 . Recycling Unit Hacks 2 | . 2 . Report Inventory 1 | . 1 . Retrieve Components 1 | . 1 . Scanalyzer . | . . . Garrison Access Hacks . | . . . Unauthorized Hacks 5 | . 5 . Terminals 4 | . 4 . Assimilate 1 | . 1 . Botnet 2 | . 2 . Operators 1 | . 1 . Fabricators . | . . . Repair Stations . | . . . Recycling Units 1 | . 1 . Mask 1 | . 1 . Scanalyzers . | . . . Garrison Access . | . . . Data Cores Recovered 1 | . 1 . Used . | . . . Hacking Detections 10 | . 10 . Full Trace Events . | . . . Feedback Events . | . . . Feedback Blocked . | . . . Robot Schematics Acquired . | . . . Robots Built . | . . . Authchips . | . . . Time . | . . . Total Robot Build Rating . | . . . Part Schematics Acquired . | . . . Parts Built . | . . . Authchips . | . . . Time . | . . . Total Part Build Rating . | . . . Parts Repaired 1 | . 1 . Time 26 | . 26 . Parts Recycled . | . . . Recycled Matter . | . . . Retrieved Matter . | . . . Retrieved Components 10 | . 10 . Parts Scanalyzed . | . . . Part Schematics Acquired . | . . . Parts Damaged . | . . . Bothacking | -11 -10 -10 ------------ Run | Yrd Mat Min Used RIF Installer . | . . . Robots Hacked . | . . . Non-combat . | . . . Combat . | . . . Robot Hacks Applied . | . . . Relay Couplers Released . | . . . Fabnet Peak Effective % . | . . . Robots Rewired . | . . . Allies Hacked . | . . . Hacks Repelled . | . . . Allies | -11 -10 -10 -------- Run | Yrd Mat Min Total Allies 1 | . 1 . Largest Group 1 | . 1 1 Highest-Rated Group 10 | . 10 10 Highest-Rated Ally 10 | . 10 10 Total Orders . | . . . Ally Attacks . | . . . Total Damage . | . . . Kills . | . . . Allies Corrupted . | . . . Allies Melted . | . . . Intel | -11 -10 -10 ------- Run | Yrd Mat Min Active Infowar (turns) 2304 | 39 2035 230 Optics 499 | . 269 230 Terrain 649 | 39 610 . Structural 1156 | . 1156 . Robot Analysis Total 3 | . 3 . Derelict Logs Recovered . | . . . Drone Launches . | . . . Drone Recoveries . | . . . Exploration | -11 -10 -10 ------------- Run | Yrd Mat Min Turns Passed 2451 | 179 2042 230 Spaces Moved 1030 | 69 894 67 Core 16 | 16 . . Treads 1014 | 53 894 67 Legs . | . . . Wheels . | . . . Hover . | . . . Flight . | . . . Fastest Speed 50 | 50 160 240 Average Speed 186 | 157 184 241 Slowest Speed 320 | 250 240 320 Overloaded Moves . | . . . Propulsion Burnouts . | . . . Robots Hopped . | . . . Potential Cave-ins . | . . . Cave-ins Triggered . | . . . Exploration Rate (%) 38 | 4 98 14 Regions Visited 2 Branch Regions 1 Pre-discovered Areas . | . . . Known Exits Taken 1 | . 1 . Unknown Exits Taken 1 | 1 . . Scrap Searched . | . . . Spaces Dug 5 | . 5 . Terrain Destroyed 5 | . 5 . Melee 5 | . 5 . Projectile . | . . . AOE . | . . . Terrain Rammed . | . . . Walls Destroyed . | . . . Machines Disabled . | . . . Actions | -11 -10 -10 --------- Run | Yrd Mat Min Total 1382 | 121 1153 108 Wait 185 | 36 128 21 Move 1028 | 68 893 67 Hop . | . . . Pick Up 25 | 2 23 . Fast Attach 9 | 7 2 . Attach 4 | . 2 2 Detach 1 | . 1 . Swap 12 | . 11 1 Drop 10 | . 10 . Fire 103 | 8 78 17 Melee 5 | . 5 . Ram . | . . . Kick . | . . . Crush . | . . . Escape Stasis . | . . . Rewire . | . . . Trap . | . . . Miscellaneous . | . . . Route ------- -11/Scrapyard -10/Materials (discovered 5 exits: [*Mat x3] / *Min / [*Sub]) -10/Mines (discovered 1 exit: [*Mat]) History --------- Turn | Location | Event 43 | -11/Scrapyard | Discovered new exit (range 16) 180 | -11/Scrapyard | Entered Materials 317 | -10/Materials | Build established: Mutant 931 | -10/Materials | Identified exit to Mines 1077 | -10/Materials | Discovered new exit (range 11) 1241 | -10/Materials | Discovered new exit (range 7) 1251 | -10/Materials | Discovered new exit (range 12) 1352 | -10/Materials | Repaired Lgt. Treads 2012 | -10/Materials | Discovered new exit (range 7) 2222 | -10/Materials | Entered Mines 2222 | -10/Mines | Accompanied by 1 ally 2299 | -10/Mines | Assembled infested the area 2357 | -10/Mines | Build established: Scavenger-Mutant 2410 | -10/Mines | Discovered new exit (range 12) 2447 | -10/Mines | Core integrity fell below 50% 2451 | -10/Mines | Core integrity fell below 20% 2452 | -10/Mines | Destroyed by D-53 Grenadier with Mini Grenade Launcher Last Messages --------------- K-01 Serf collects debris. Acquired 14 matter. Acquired 17 matter. as-65078 sneak attacks. K-01 Serf destroyed. as-65078 destroyed. Switching to secondary target: as-34174. as-34174 destroyed. C-30 ARC bursts open, deploying its payload. D-53 Grenadier unfolds itself. Lgt. Treads destroyed. Imp. Ion Engine destroyed. T-07 Excavator destroyed. The unstable cave ceiling collapses. Lgt. Treads destroyed. Lgt. Assault Rifle destroyed. K-01 Serf collects debris. Lgt. Assault Rifle destroyed. The unstable cave ceiling collapses. K-01 Serf collects debris. Map ----- +----------------------------------------------------+ | ????????????????###?????# #???????????????? | | ???????????????## ###??# #???????????????? | | ???????????????# ##?# #???????????????? | | ???????????????# #?# #???????????????? | | ???????????????# ### #???????????????? | | ???????????????## #???????????????? | | ????????????????# ## #???????????????? | | ????????????????# ?##### ###???????????????? | | ????????????????#??????# #?????????????????? | | ???????????????????????# ######????????????? | | ???????????????????????# #????????????? | | ???????????????????????###### #????????????? | | ????????????????????????????# #????????????? | | ????????????????????????????# #????????????? | | ????????????????????????????# ###??????????? | | ???????????????????????????## ##?????????? | | ??????????????????????????## #?????????? | | ????????????????????#???### #?????????? | | ????????????????????# ### ##?????????? | | ????????????????????# = = ####??????????? | | ????????????????????# ## =% ##?????????????? | | ????????????????????# # ##?????????????? | | ????????????????????# ###???????????? | | ????????????????????# +???????????? | | ????????????????????# +???????????? | | ????????????????????# @ ##???????????? | | ????????????????????# #????????????? | | ????????????????????# ##????????????? | | ????????????????????## #?????????????? | | ?????????????????????## %dk ##?????????????? | | ?????????????????????? d < #??????????????? | | ????????????????????? ??????????????? | | ????????????????????? ??????????????? | | ???????????????????? ## ##?????????????? | | ????????????????????##??#####??????????????? | | ???????????????????????????????????????????? | | | | | | | | | | | | | | | | | | | | | | | | | | | | | +----------------------------------------------------+ Best States ------------- Heat Dissipation 25 Energy Generation 12 Energy Capacity 265 Matter Stores 300 Matter Capacity 300 Sight Range 18 Terrain Scan Range 16 Terrain Scan Density 10 Evasion (%) 40 Recoil Reduction 2 Item Schematics ----------------- None Robot Schematics ------------------ None Fabricated ------------ Nothing Repaired ---------- Lgt. Treads | 20% | -10/Materials Alien Tech Used ----------------- None Achievements -------------- None Challenges ------------ None Game ------ Seed ProtonMeleeSystem Manual? 0 Play Time 00:18:36 Cumulative 120.6 hours Start 2025.06.05 @ 13:36:34 End 2025.06.05 @ 15:56:43 Sessions 1 Manual Loads 0 Difficulty Rogue Special Mode None Game No. 154 Rogue 154 Adventurer 0 Explorer 0 Win Type - Total 0 Types 0/0/0/0/0/0/0/0/0/0 Lore% 39 Gallery% 37 Achievement% 33 Wizard Run 0 Options --------- Layout 0 ASCII 0 Keyboard 0 Movement Mouse Keybinds 0 Fullscreen 2 Font 18/SmallcapsGlow Map View 76x50 Zoom Use 0% Tactical HUD 0 Map Filters NONE Filters NONE Steam 1 RUN: d9abe2db-8b79-4dbf-854e-69ca181dc7bb